lending/lending_fUSD_20260328
["ID","MTS","AMOUNT","RATE_DAILY","PERIOD"]
[418970502,1774693838194,-500.0,0.00015058,2]
[418970504,1774693838203,-500.0,0.00015058,2]
[418970506,1774693838212,-500.0,0.00015058,2]
[418970509,1774693838221,-500.0,0.00015058,2]
[418970510,1774693838231,-500.0,0.00015058,2]
[418970513,1774693838241,-500.0,0.00015058,2]
[418970515,1774693838250,-500.0,0.00015058,2]
[418970517,1774693838260,-500.0,0.00015058,2]
[418970519,1774693838269,-500.0,0.00015058,2]
[418970521,1774693838279,-500.0,0.00015058,2]
[418970523,1774693838288,-500.0,0.00015058,2]
[418970525,1774693838297,-500.0,0.00015058,2]
[418970526,1774693838306,-500.0,0.00015058,2]
[418970529,1774693838316,-239.25319957,0.00015058,2]
[418970531,1774693838326,-500.0,0.00015058,2]
[418970533,1774693838336,-500.0,0.00015058,2]
[418970535,1774693838345,-500.0,0.00015058,2]
[418970537,1774693838355,-500.0,0.00015058,2]
[418970539,1774693838364,-500.0,0.00015058,2]
[418970541,1774693838374,-500.0,0.00015058,2]
[418970543,1774693838383,-500.0,0.00015058,2]
[418970545,1774693838393,-500.0,0.00015058,2]
[418970547,1774693838402,-500.0,0.00015058,2]
[418970549,1774693838412,-31307.91929004,0.000158,2]
[418970551,1774693838421,-6767.8194,0.000158,2]
[418970553,1774693838434,-166.6371911,0.000158,2]
[418970555,1774693838444,-664.0328,0.000158,2]
[418970557,1774693838454,-5000.0,0.000158,2]
[418970559,1774693838463,-166.60365292,0.000158,2]
[418970561,1774693838472,-160.18438458,0.000158,2]
[418970563,1774693838482,-159.03982034,0.000158,2]
[418970565,1774693838493,-192.25901704,0.000158,2]
[418970567,1774693838502,-1453.64749128,0.000158,2]
[418970569,1774693838512,-166.60365292,0.00015817,2]
[418970571,1774693838522,-159.03982034,0.00015825,2]
[418970573,1774693838531,-166.60365292,0.00015833,2]
[418970575,1774693838541,-166.60365292,0.0001585,2]
[418970577,1774693838551,-159.03982034,0.0001585,2]
[418970579,1774693838560,-166.60365292,0.00015867,2]
[418970581,1774693838570,-500.0,0.00015873,2]
[418970583,1774693838580,-159.03982034,0.00015875,2]
[418970585,1774693838590,-166.60365292,0.00015883,2]
[418970587,1774693838600,-195.78200295,0.0001589,2]
[418970590,1774693838609,-500.0,0.00015899,2]
[418970592,1774693838620,-500.0,0.00015899,2]
[418970594,1774693838630,-500.0,0.00015899,2]
[418970596,1774693838640,-246.21386464,0.00015899,2]
[418970598,1774693838649,-500.0,0.00015899,2]
[418970599,1774693838659,-210.61753447,0.00015899,2]
[418970600,1774693838669,-500.0,0.00015899,2]
[418970601,1774693838678,-500.0,0.00015899,2]
[418970602,1774693838688,-558.98287713,0.00015899,2]
[418970603,1774693838698,-223.42139134,0.00015899,2]
[418970604,1774693838707,-1065.0,0.000159,5]
[418970605,1774693838717,-72190.45180579,0.000159,2]
[418970726,1774693840096,-155.914,0.00015899,2]
[418970727,1774693840106,-682.02539657,0.000159,2]
[418970728,1774693840215,-1982.76593172,0.000159,2]
[418970729,1774693840230,-6411.0145618,0.000159,2]
[418970730,1774693840244,-6079.65145141,0.000159,2]
[418970731,1774693840259,-7630.80463205,0.000159,2]
[418970732,1774693840273,-482.69560917,0.000159,2]
[418970733,1774693840288,-4200.75156669,0.000159,2]
[418970734,1774693840303,-375.00271196,0.000159,2]
[418970735,1774693840610,-1000.0,0.00014308,2]
[418970739,1774693842980,-325.58015431,0.00014308,2]
[418970740,1774693843257,-638.85905019,0.00014308,2]
[418970741,1774693843317,-473.25680689,0.00014308,2]
[418970742,1774693843329,-3574.30398861,0.00014308,2]
[418970743,1774693843338,-11429.84755232,0.000159,2]
[418970744,1774693843350,-1071.18168082,0.000159,2]
[418970751,1774693845818,-13371.4208097,0.000159,2]
[418970752,1774693845830,-2237.053,0.000159,2]
[418970753,1774693845933,-539.11867813,0.000159,2]
[418970754,1774693846269,-26391.3172167,0.000159,2]
[418970755,1774693846281,-274854.11120867,0.000159,2]
[418970757,1774693853370,500.0,0.00012527,2]
[418970763,1774694768471,677.17,0.00011887,2]
[418970769,1774695032030,-529.0,0.00013111,2]
[418970770,1774695032041,-250.0,0.00013111,2]
[418970771,1774695032050,-176.69833795,0.000143,2]
[418970772,1774695032060,-300.0,0.00014399,2]
[418970773,1774695032071,-1167.0,0.00014399,2]
[418970774,1774695032235,-1200.0,0.00014399,2]
[418970775,1774695032244,-161.0,0.000144,2]
[418970776,1774695032254,-1570.0,0.000144,2]
[418970777,1774695032264,-2807.0,0.000144,2]
[418970778,1774695032274,-250.0,0.00014422,2]
[418970779,1774695032283,-250.0,0.00014422,2]
[418970780,1774695032292,-3240.0,0.00014594,2]
[418970781,1774695032300,-6012.0,0.00014626,2]
[418970782,1774695032310,-704.542,0.00014626,2]
[418970783,1774695032321,-2000.0,0.00014639,2]
[418970785,1774695032331,-171.01,0.00014669,2]
[418970787,1774695032341,-500.0,0.00014685,2]
[418970788,1774695032350,-1570.0,0.0001472,2]
[418970789,1774695032359,-620.0,0.0001472,2]
[418970790,1774695032369,-2807.0,0.0001472,2]
[418970791,1774695032378,-150.0,0.00014779,2]
[418970792,1774695032387,-3306.91,0.0001478,2]
[418970793,1774695032397,-1177.23,0.0001478,2]
[418970795,1774695032407,-1903.42,0.0001478,2]
[418970797,1774695032416,-156.39497394,0.00014927,2]
[418970799,1774695032425,-500.0,0.00014927,2]
[418970800,1774695032435,-303.48732248,0.00014927,2]
[418970801,1774695032444,-500.0,0.00014927,2]
[418970802,1774695032454,-217450.23480591,0.00014928,2]
[418970805,1774695032465,-1610.89109739,0.00014928,2]
[418970812,1774695032629,-8279.3824823,0.00014928,2]
[418970813,1774695032640,-756.18617286,0.00014928,2]
[418970814,1774695032781,-3396.0,0.00014928,2]
[418970815,1774695032793,-2452.34120505,0.00014928,2]
[418970816,1774695032804,-3618.11972123,0.00014928,2]
[418970817,1774695032860,-510.0,0.00014928,2]
[418970818,1774695032871,-499.50294632,0.00014928,2]
[418970819,1774695038155,-500.0,0.00014927,2]
[418970820,1774695038165,-233.43174803,0.00014927,2]
[418970821,1774695038313,-177.12452268,0.00014927,2]
[418970822,1774695038323,-500.0,0.00014927,2]
[418970823,1774695038334,-500.0,0.00014927,2]
[418970824,1774695038344,-500.0,0.00014927,2]
[418970825,1774695038353,-500.0,0.00014927,2]
[418970826,1774695038363,-439.08602234,0.00014927,2]
[418970827,1774695038373,-500.0,0.00014927,2]
[418970828,1774695038382,-500.0,0.00014927,2]
[418970829,1774695038392,-500.0,0.00014927,2]
[418970830,1774695038402,-166.58207683,0.00014927,2]
[418970831,1774695038411,-343.39163833,0.00014927,2]
[418970841,1774695040724,-156.60836167,0.00014927,2]
[418970842,1774695040734,-350.32163833,0.00014927,2]
[418970847,1774695041726,813.77,0.00011979,2]
[418970850,1774695043404,-149.67836167,0.00014927,2]
[418970851,1774695043414,-500.0,0.00014927,2]
[418970852,1774695043424,-500.0,0.00014927,2]
[418970853,1774695043434,-500.0,0.00014927,2]
[418970854,1774695043443,-555.4473677,0.00014927,2]
[418970855,1774695043453,-500.0,0.00014927,2]
[418970856,1774695043463,-500.0,0.00014927,2]
[418970857,1774695043473,-500.0,0.00014927,2]
[418970858,1774695043483,-150.56696842,0.00014927,2]
[418970859,1774695043493,-500.0,0.00014927,2]
[418970860,1774695043503,-333.48195717,0.00014927,2]
[418970861,1774695043518,-166.51804283,0.00014927,2]
[418970862,1774695043527,-194.65607326,0.00014927,2]
[418970863,1774695043537,-141.35815354,0.00014927,2]
[418970864,1774695043558,-218.74129043,0.00014927,2]
[418970865,1774695043568,-405.94738692,0.00014927,2]
[418970969,1774695045915,-94.05261308,0.00014927,2]
[418970970,1774695045926,-500.0,0.00014927,2]
[418970971,1774695045936,-500.0,0.00014927,2]
[418970972,1774695045946,-47.54738692,0.00014927,2]
[418970973,1774695045957,-452.45261308,0.00014927,2]
[418970974,1774695045966,-360.96077008,0.00014927,2]
[418970975,1774695045977,-139.03922992,0.00014927,2]
[418970976,1774695045987,-500.0,0.00014927,2]
[418970977,1774695045996,-500.0,0.00014927,2]
[418970978,1774695046005,-500.0,0.00014927,2]
[418970979,1774695046015,-500.0,0.00014927,2]
[418970980,1774695046024,-500.0,0.00014927,2]
[418970981,1774695046034,-8.75384913,0.00014927,2]
[418970988,1774695096270,1596.0,0.000113,5]
[418970989,1774695137742,500.0,0.00013011,2]
[418970990,1774695252875,170.35,0.00011775,2]
[418970997,1774695992715,2020.0,0.0001119,2]
[418970998,1774695993236,1400.0,0.0001206,2]
[418970999,1774696055604,681.2,0.00011629,2]
[418971000,1774696055910,578.03,0.00012718,2]
[418971017,1774696208686,8740.78,9.5e-05,3]
[418971018,1774696208709,10000.01,9.5e-05,3]
[418971019,1774696208732,10000.01,9.5e-05,3]
[418971020,1774696208756,10000.01,9.5e-05,3]
[418971021,1774696208778,10000.01,9.5e-05,3]
[418971022,1774696208801,10000.01,9.5e-05,3]
[418971023,1774696208825,10000.01,9.5e-05,3]
[418971024,1774696208847,10000.01,9.5e-05,3]
[418971025,1774696208870,10000.01,9.5e-05,3]
[418971026,1774696208892,10000.01,9.5e-05,3]
[418971027,1774696208922,500.0,9.5e-05,3]
[418971028,1774696208948,500.0,9.5e-05,3]
[418971029,1774696208975,500.0,9.5e-05,3]
[418971030,1774696209000,500.0,9.5e-05,3]
[418971031,1774696209028,500.0,9.5e-05,3]
[418971032,1774696209054,500.0,9.5e-05,3]
[418971033,1774696209081,500.0,9.5e-05,3]
[418971034,1774696209107,500.0,9.5e-05,3]
[418971035,1774696209133,1135.27977915,9.5e-05,3]
[418971036,1774696209156,1135.27977915,9.5e-05,3]
[418971037,1774696209182,1135.27977915,9.5e-05,3]
[418971038,1774696209205,1135.27977915,9.5e-05,3]
[418971039,1774696209229,1135.27977915,9.5e-05,3]
[418971040,1774696209253,1135.27977915,9.5e-05,3]
[418971041,1774696209276,1135.27977915,9.5e-05,3]
[418971042,1774696209301,1135.27977915,9.5e-05,3]
[418971043,1774696209324,1135.27977915,9.5e-05,3]
[418971044,1774696209347,1135.27977915,9.5e-05,3]
[418971045,1774696215745,-4082.59,9.5e-05,3]
[418971046,1774696215834,-5000.01,9.5e-05,3]
[418971047,1774696217632,-3499.89,9.5e-05,3]
[418971048,1774696218376,-5000.01,9.5e-05,3]
[418971049,1774696218491,-5000.01,9.5e-05,3]
[418971050,1774696218585,-5000.01,9.5e-05,3]
[418971051,1774696218684,-5000.01,9.5e-05,3]
[418971052,1774696218793,-5000.01,9.5e-05,3]
[418971053,1774696219017,-10000.01,9.5e-05,3]
[418971054,1774696219162,-10000.01,9.5e-05,3]
[418971055,1774696219277,-10000.01,9.5e-05,3]
[418971056,1774696219360,-10000.01,9.5e-05,3]
[418971057,1774696219474,-10000.01,9.5e-05,3]
[418971058,1774696219604,-10000.01,9.5e-05,3]
[418971059,1774696219719,-10000.01,9.5e-05,3]
[418971060,1774696219823,-10000.01,9.5e-05,3]
[418971061,1774696219933,-10000.01,9.5e-05,3]
[418971062,1774696221540,-5000.01,9.5e-05,3]
[418971063,1774696221749,-5000.01,9.5e-05,3]
[418971064,1774696221850,-5000.01,9.5e-05,3]
[418971065,1774696221955,-5000.01,9.5e-05,3]
[418971066,1774696222011,-10000.01,9.5e-05,3]
[418971067,1774696222050,-5000.01,9.5e-05,3]
[418971068,1774696224446,-5000.01,9.5e-05,3]
[418971069,1774696224792,-5000.01,9.5e-05,3]
[418971070,1774696225295,-5000.01,9.5e-05,3]
[418971071,1774696225502,-5000.01,9.5e-05,3]
[418971072,1774696225773,-430.97936613,9.5e-05,3]
[418971073,1774696225796,-4138.05126774,9.5e-05,3]
[418971082,1774696232349,-312.0,0.00013062,2]
[418971083,1774696232359,-851.04741298,0.00013062,2]
[418971084,1774696232370,-361.71258702,0.00013062,2]
[418971085,1774696232379,-65.93741298,0.00013087,2]
[418971086,1774696232390,-184.06258702,0.00013087,2]
[418971087,1774696232399,-233.18254632,0.00013111,2]
[418971088,1774696232455,-295.81745368,0.00013111,2]
[418971089,1774696232465,-151.0,0.00013324,2]
[418971090,1774696232474,-176.69833794,0.00013423,2]
[418971091,1774696232483,-424.27420838,0.0001369,2]
[418971092,1774696232525,-1097.89225197,0.0001369,2]
[418971093,1774696232537,-255.51004428,0.0001369,2]
[418971094,1774696232549,-867.61452967,0.0001369,2]
[418971095,1774696232562,-96.4589657,0.0001369,2]
[418971096,1774696232571,-500.0,0.00013769,2]
[418971097,1774696232581,-216.15,0.00013911,2]
[418971098,1774696232591,-300.0,0.00013922,2]
[418971099,1774696232601,-300.0,0.00013922,2]
[418971100,1774696232610,-1200.0,0.00013922,2]
[418971101,1774696232620,-300.0,0.00013922,2]
[418971103,1774696232629,-1200.0,0.00013923,2]
[418971104,1774696232639,-300.0,0.00013923,2]
[418971105,1774696232649,-300.0,0.00013923,2]
[418971106,1774696232658,-1600.0,0.00013924,2]
[418971107,1774696232668,-33.06061953,0.00013924,2]
[418971109,1774696232693,-403.7545744,0.00013924,2]
[418971110,1774696232704,-11237.48396771,0.00013924,2]
[418971111,1774696232716,-3847.84083836,0.00013924,2]
[418971112,1774696232727,-1852.42,0.00014258,2]
[418971113,1774696232738,-250.0,0.00014369,2]
[418971114,1774696232750,-250.0,0.00014369,2]
[418971115,1774696232759,-150.0,0.000144,2]
[418971116,1774696232768,-3062.23916164,0.00014408,2]
[418971121,1774696238471,-2949.76083836,0.00014408,2]
[418971122,1774696238480,-200.0,0.000145,2]
[418971123,1774696238489,-77.67290108,0.00014548,2]
[418971124,1774696238628,-300.96524,0.00014548,2]
[418971125,1774696239815,1500.0,9.168e-05,2]
[418971139,1774696240398,1396.7,9.415e-05,2]
[418971142,1774696240778,7103.31,0.00011027,2]
[418971143,1774696240802,9549.4297151,0.00011027,2]
[418971144,1774696240830,450.5802849,9.726e-05,2]
[418971145,1774696240854,249.4197151,9.726e-05,2]
[418971146,1774696240948,9750.5902849,0.00012879,2]
[418971147,1774696240970,6902.1494302,0.00012879,2]
[418971148,1774696241329,800.0,9.857e-05,2]
[418971149,1774696241832,650.0,0.00010129,2]
[418971150,1774696242337,1647.8605698,0.0001046,2]
[418971151,1774696242359,316.2194302,0.0001046,2]
[418971152,1774696242842,1680.0,0.0001069,2]
[418971154,1774696243355,740.0,0.00010917,2]
[418971155,1774696243701,-121.36185892,0.00014548,2]
[418971156,1774696243711,-500.0,0.00014585,2]
[418971157,1774696243721,-150.0,0.00014625,2]
[418971158,1774696243730,-500.0,0.0001464,2]
[418971159,1774696243740,-500.0,0.00014695,2]
[418971160,1774696243750,-155.45,0.00014718,2]
[418971161,1774696243760,-2376.87943812,0.00014724,2]
[418971162,1774696243772,-422.14815117,0.00014724,2]
[418971163,1774696243842,-36.97241071,0.00014724,2]
[418971164,1774696243853,-150.0,0.00014727,2]
[418971165,1774696243863,-500.0,0.00014727,2]
[418971166,1774696243873,-500.0,0.00014727,2]
[418971167,1774696243883,-212.44112573,0.00014727,2]
[418971168,1774696243893,-357.36021564,0.00014727,2]
[418971169,1774696243903,-500.0,0.00014727,2]
[418971170,1774696243913,-500.0,0.00014727,2]
[418971171,1774696243923,-187.3893895,0.00014727,2]
[418971172,1774696243933,-300.56101896,0.00014727,2]
[418971175,1774696246651,-199.43898104,0.00014727,2]
[418971176,1774696246661,-311.17691746,0.00014727,2]
[418971177,1774696246670,-500.0,0.00014727,2]
[418971178,1774696246680,-500.0,0.00014727,2]
[418971179,1774696246691,-500.0,0.00014727,2]
[418971180,1774696246701,-61.92775303,0.00014727,2]
[418971181,1774696246736,-438.07224697,0.00014727,2]
[418971182,1774696246745,-500.0,0.00014727,2]
[418971183,1774696246755,-407.4348789,0.00014727,2]
[418971184,1774696246764,-500.0,0.00014727,2]
[418971185,1774696246774,-500.0,0.00014727,2]
[418971186,1774696246782,-500.0,0.00014727,2]
[418971187,1774696246792,-500.0,0.00014727,2]
[418971188,1774696246803,-500.0,0.00014727,2]
[418971189,1774696246812,-500.0,0.00014727,2]
[418971190,1774696246821,-500.0,0.00014727,2]
[418971191,1774696246830,-500.0,0.00014727,2]
[418971192,1774696246839,-500.0,0.00014727,2]
[418971193,1774696246848,-500.0,0.00014727,2]
[418971194,1774696246858,-500.0,0.00014727,2]
[418971195,1774696246867,-500.0,0.00014727,2]
[418971196,1774696246877,-500.0,0.00014727,2]
[418971197,1774696246886,-500.0,0.00014727,2]
[418971198,1774696246896,-500.0,0.00014727,2]
[418971199,1774696246906,-500.0,0.00014727,2]
[418971200,1774696246915,-500.0,0.00014727,2]
[418971201,1774696246924,-411.6828714,0.00014727,2]
[418971205,1774696248184,184.6297,0.00013011,2]
[418971206,1774696268299,250.0,0.00011053,2]
[418971207,1774696305795,1900.0,0.00012699,2]
[418971208,1774696306326,1070.0,0.00013003,2]
[418971210,1774696453169,166.66,0.00012978,2]
[418971215,1774696804441,3692.5008698,0.00013014,2]
[418971216,1774696804466,5426.6391302,0.00013014,2]
[418971222,1774696805201,311.0,0.00013014,2]
[418971229,1774697227330,800.0,0.00012295,2]
[418971230,1774697227831,1943.25,0.00012525,2]
[418971231,1774697228336,1000.0,0.00012931,2]
[418971234,1774697405401,311.0,0.00013014,2]
[418971235,1774697431460,-190.0,0.00013014,2]
[418971236,1774697431470,-164.0,0.00013014,2]
[418971237,1774697431479,-160.0,0.00013014,2]
[418971238,1774697431489,-250.0,0.00013027,2]
[418971239,1774697431498,-131.86861586,0.00013097,2]
[418971240,1774697431518,-431.93198518,0.00013097,2]
[418971241,1774697431527,-255.86898619,0.00013111,2]
[418971242,1774697431536,-530.0,0.00013111,2]
[418971243,1774697431546,-166.66,0.00013251,2]
[418971244,1774697431555,-818.4,0.0001333,2]
[418971245,1774697431565,-500.0,0.00013332,2]
[418971246,1774697431574,-429.59323127,0.000134,2]
[418971247,1774697431584,-500.0,0.000134,2]
[418971248,1774697431593,-500.0,0.000134,2]
[418971249,1774697431603,-500.0,0.000134,2]
[418971250,1774697431612,-500.74189398,0.000134,2]
[418971251,1774697431621,-190.0,0.00013453,3]
[418971252,1774697431631,-210.88,0.00013505,2]
[418971253,1774697431639,-166.66,0.00013525,2]
[418971254,1774697431649,-1087.6,0.00013559,2]
[418971255,1774697431659,-200.0,0.000136,2]
[418971256,1774697431668,-1200.0,0.0001366,2]
[418971257,1774697431678,-300.0,0.00013662,2]
[418971258,1774697431687,-300.0,0.00013662,2]
[418971259,1774697431696,-300.0,0.00013662,2]
[418971260,1774697431705,-1200.0,0.00013663,2]
[418971261,1774697431715,-1593.87,0.00013664,2]
[418971262,1774697431724,-171.01,0.00013699,2]
[418971263,1774697431733,-2170.0,0.00013773,2]
[418971264,1774697431742,-166.66,0.00013798,2]
[418971265,1774697431751,-190.0,0.00013928,3]
[418971266,1774697431764,-635.83,0.00013979,2]
[418971267,1774697431774,-166.66,0.00014071,2]
[418971268,1774697431783,-150.0,0.00014102,2]
[418971269,1774697431793,-1730.17,0.00014102,2]
[418971270,1774697431802,-500.0,0.00014247,2]
[418971271,1774697431812,-6012.0,0.00014311,2]
[418971272,1774697431822,-400.86393523,0.00014316,2]
[418971273,1774697431831,-250.0,0.00014316,2]
[418971274,1774697431840,-159.03982034,0.00014321,2]
[418971275,1774697431849,-166.66,0.00014344,2]
[418971276,1774697431858,-3656.3021,0.00014384,2]
[418971277,1774697431868,-190.0,0.00014403,3]
[418971278,1774697431877,-500.0,0.00014419,2]
[418971279,1774697431886,-500.0,0.0001442,2]
[418971280,1774697431896,-181.17257265,0.0001442,2]
[418971281,1774697431905,-500.0,0.0001442,2]
[418971282,1774697431914,-500.0,0.0001442,2]
[418971283,1774697431924,-500.0,0.0001442,2]
[418971284,1774697431933,-500.0,0.0001442,2]
[418971285,1774697431943,-330.42691023,0.0001442,2]
[418971286,1774697431952,-500.0,0.0001442,2]
[418971287,1774697431963,-500.0,0.0001442,2]
[418971288,1774697431975,-500.0,0.0001442,2]
[418971289,1774697431985,-181.40439175,0.0001442,2]
[418971290,1774697431995,-500.0,0.0001442,2]
[418971291,1774697432004,-76730.29099842,0.00014421,2]
[418971292,1774697432017,-616.38608097,0.00014421,2]
[418971293,1774697432033,-5989.73408341,0.00014421,2]
[418971294,1774697432045,-1623.06639354,0.00014421,2]
[418971295,1774697432062,-296.369996,0.00014421,2]
[418971296,1774697432116,208.1208698,0.00012995,2]
[418971297,1774697432138,10000.01,0.00012995,2]
[418971298,1774697432162,3500.3791302,0.00012995,2]
[418971304,1774697437533,-4897.49151961,0.00014421,2]
[418971305,1774697437638,-252064.00322017,0.00014421,2]
[418971306,1774697437746,-675460.22061691,0.00014421,2]
[418971307,1774697437855,-2832.12730388,0.00014421,2]
[418971317,1774697440288,-548.87501464,0.00014421,2]
[418971318,1774697440344,-807.438462,0.00014421,2]
[418971319,1774697440401,-37808.36663339,0.00014421,2]
[418971320,1774697440413,-2205.71495633,0.00014421,2]
[418971330,1774697442811,-1784.57115365,0.00014421,2]
[418971376,1774697445452,-1996.59999992,0.00014421,2]
[418971377,1774697445772,-5601.24,0.00014421,2]
[418971378,1774697445828,-874.06867596,0.00014421,2]
[418971385,1774698147260,900.0,0.0001252,2]
[418971386,1774698176587,-9000000.0,0.00046893,30]
[418971387,1774698182148,-9000000.0,0.00046893,30]
[418971388,1774698197942,-9000000.0,0.00046893,30]
[418971389,1774698201765,-5322815.71768054,0.00046893,30]
[418971390,1774698201790,-10000.0,0.00046893,120]
[418971391,1774698201815,-6128.1423228,0.00046893,60]
[418971392,1774698201839,-40000.0,0.00046893,50]
[418971393,1774698201864,-3621056.13999666,0.00046893,30]
[418971394,1774698205390,-9000000.0,0.00046893,30]
[418971395,1774698208815,-9000000.0,0.00046893,30]
[418971396,1774698221158,-9000000.0,0.00046893,30]
[418971397,1774698240390,737.42,0.00011507,2]
[418971398,1774698252309,1133.11,6.658e-05,2]
[418971399,1774698252497,1133.11,7.008e-05,2]
[418971400,1774698252678,1133.11,7.359e-05,2]
[418971401,1774698252859,1133.11,7.709e-05,2]
[418971402,1774698253120,1133.11,8.06e-05,2]
[418971403,1774698253322,1133.11,8.41e-05,2]
[418971404,1774698253516,1133.11,8.761e-05,2]
[418971405,1774698253916,1133.11,9.111e-05,2]
[418971406,1774698254115,197.71,9.461e-05,2]
[418971407,1774698254137,935.4,9.461e-05,2]
[418971408,1774698254307,1133.11,9.812e-05,2]
[418971409,1774698254488,1133.11,0.00010162,2]
[418971410,1774698254674,1133.11,0.00010513,2]
[418971411,1774698254863,1133.11,0.00010863,2]
[418971412,1774698255050,1133.11,0.00011213,2]
[418971413,1774698255229,1133.11,0.00011564,2]
[418971414,1774698255408,1133.11,0.00011914,2]
[418971415,1774698255595,1132.84,0.00012265,2]
[418971416,1774698255619,0.27,0.00012265,2]
[418971417,1774698255784,1133.11,0.00012615,2]
[418971418,1774698255976,1133.11,0.00012965,2]
[418971419,1774698264762,-9000000.0,0.00046893,30]
[418971420,1774698268522,-9000000.0,0.00046893,30]
[418971421,1774698272025,-9000000.0,0.00046893,30]
[418971422,1774698275408,-9000000.0,0.00046893,30]
[418971423,1774698279168,-832652.78816801,0.00046893,30]
[418971424,1774698279193,-37277.14,0.00046893,120]
[418971425,1774698279219,-163.56718,0.00046893,45]
[418971426,1774698279244,-199.78874,0.00046893,60]
[418971427,1774698279268,-163.56718,0.00046893,45]
[418971428,1774698279293,-163.56718,0.00046893,45]
[418971429,1774698279320,-163.56718,0.00046893,45]
[418971430,1774698279346,-193.03406883,0.00046893,120]
[418971431,1774698279515,-186.17883964,0.00046893,120]
[418971432,1774698279544,-500.0,0.00046893,120]
[418971433,1774698279571,-500.0,0.00046893,120]
[418971434,1774698279599,-500.0,0.00046893,120]
[418971435,1774698279627,-186.40908657,0.00046893,120]
[418971436,1774698279652,-638570.0,0.00046893,60]
[418971437,1774698279677,-284.90565241,0.00046893,60]
[418971438,1774698279702,-20000.0,0.00046893,120]
[418971439,1774698279728,-293.93524792,0.00046893,30]
[418971440,1774698279752,-262.15935059,0.00046893,30]
[418971441,1774698279778,-448.63022347,0.00046893,120]
[418971442,1774698279807,-309.82548945,0.00046893,60]
[418971443,1774698279834,-248.59918987,0.00046893,120]
[418971444,1774698279859,-929.56519548,0.00046893,120]
[418971445,1774698279884,-713.87309364,0.00046893,30]
[418971446,1774698279909,-292.68924016,0.00046893,30]
[418971447,1774698279934,-162.79777573,0.00046893,120]
[418971448,1774698279958,-173.05812245,0.00046893,120]
[418971449,1774698279982,-498.01067302,0.00046893,120]
[418971450,1774698280007,-594.12434779,0.00046893,120]
[418971451,1774698280032,-854.80201242,0.00046893,120]
[418971452,1774698280058,-343.82487913,0.00046893,120]
[418971453,1774698280083,-153.19119484,0.00046893,120]
[418971454,1774698280108,-181.38048836,0.00046893,30]
[418971455,1774698280133,-609.11966023,0.00046893,30]
[418971456,1774698280158,-344.64078375,0.00046893,120]
[418971457,1774698280182,-171.29643432,0.00046893,120]
[418971458,1774698280206,-208.25937325,0.00046893,120]
[418971459,1774698280230,-865.81104305,0.00046893,30]
[418971460,1774698280255,-272.03873144,0.00046893,120]
[418971461,1774698280279,-558.07770384,0.00046893,120]
[418971462,1774698280304,-1786.93852582,0.00046893,120]
[418971463,1774698280329,-810.81983165,0.00046893,120]
[418971464,1774698280353,-262.44403302,0.00046893,30]
[418971465,1774698280377,-301.51448067,0.00046893,120]
[418971466,1774698280401,-155.92856243,0.00046893,30]
[418971467,1774698280425,-3382.16254978,0.00046893,30]
[418971468,1774698280451,-254.28309597,0.00046893,30]
[418971469,1774698280476,-393.65988945,0.00046893,120]
[418971470,1774698280501,-980.59894596,0.00046893,49]
[418971471,1774698280526,-673.10539016,0.00046893,30]
[418971472,1774698280550,-288.71736653,0.00046893,30]
[418971473,1774698280575,-383.91219616,0.00046893,30]
[418971474,1774698280600,-399.20290996,0.00046893,120]
[418971475,1774698280626,-690.85597824,0.00046893,120]
[418971476,1774698280651,-318.57421691,0.00046893,120]